[Event "Live Chess"]
[Site "Chess.com"]
[Date "2024.06.01"]
[Round "-"]
[White "StoreySniper"]
[Black "upoe610"]
[Result "1-0"]
[WhiteElo "2534"]
[BlackElo "2233"]
[TimeControl "300"]
[EndTime "13:34:35 PDT"]
[Termination "StoreySniper won by resignation"]

1. c4 {[%clk 0:04:56.1]} 1... c5 {[%clk 0:04:55]} 2. g3 {[%clk 0:04:54.7]} 2...
Nc6 {[%clk 0:04:53.5]} 3. Bg2 {[%clk 0:04:54.6]} 3... g6 {[%clk 0:04:53]} 4. Nc3
{[%clk 0:04:54.1]} 4... Bg7 {[%clk 0:04:51.5]} 5. Nf3 {[%clk 0:04:52.6]} 5... e5
{[%clk 0:04:50.4]} 6. d3 {[%clk 0:04:49.4]} 6... d6 {[%clk 0:04:48.8]} 7. Rb1
{[%clk 0:04:46.1]} 7... Nge7 {[%clk 0:04:46]} 8. h4 {[%clk 0:04:44.4]} 8... h5
{[%clk 0:04:42.8]} 9. Ng5 {[%clk 0:04:42.5]} 9... O-O {[%clk 0:04:31.4]} 10. a3
{[%clk 0:04:39.1]} 10... a5 {[%clk 0:04:29.7]} 11. Bd2 {[%clk 0:04:34.8]} 11...
f6 {[%clk 0:04:26.1]} 12. Nge4 {[%clk 0:04:31.4]} 12... Kh7 {[%clk 0:04:24.3]}
13. Nb5 {[%clk 0:04:27.8]} 13... Nf5 {[%clk 0:04:15.9]} 14. Bh3 {[%clk
0:04:21.9]} 14... Nce7 {[%clk 0:04:12.6]} 15. g4 {[%clk 0:04:08]} 15... hxg4
{[%clk 0:04:04.4]} 16. Bxg4 {[%clk 0:04:07]} 16... d5 {[%clk 0:03:58.9]} 17.
Nxc5 {[%clk 0:03:59.5]} 17... dxc4 {[%clk 0:03:52.9]} 18. h5 {[%clk 0:03:50.1]}
18... Qd5 {[%clk 0:03:35.9]} 19. hxg6+ {[%clk 0:03:44.3]} 19... Kg8 {[%clk
0:03:33.1]} 20. e4 {[%clk 0:03:37]} 20... Qxc5 {[%clk 0:03:29.5]} 21. Bxf5
{[%clk 0:03:28.9]} 21... Nxf5 {[%clk 0:03:25.7]} 22. exf5 {[%clk 0:03:26.7]}
22... Qxb5 {[%clk 0:03:19.2]} 23. Qh5 {[%clk 0:03:17.8]} 23... Re8 {[%clk
0:03:13.3]} 24. Qh7+ {[%clk 0:03:13.6]} 24... Kf8 {[%clk 0:03:12.5]} 25. Bh6
{[%clk 0:03:13]} 25... Qd7 {[%clk 0:03:01.2]} 26. Qh8+ {[%clk 0:03:10.5]} 26...
Ke7 {[%clk 0:02:59.7]} 27. Qxg7+ {[%clk 0:03:09.2]} 27... Kd6 {[%clk 0:02:59.1]}
28. Qxf6+ {[%clk 0:03:07.2]} 28... Kc7 {[%clk 0:02:52.4]} 29. Be3 {[%clk
0:02:52.2]} 29... Qxf5 {[%clk 0:02:39.7]} 30. Rh7+ {[%clk 0:02:46.5]} 30... Bd7
{[%clk 0:02:36.6]} 31. Qxf5 {[%clk 0:02:44.3]} 1-0

[Event "Live Chess"]
[Site "Chess.com"]
[Date "2024.06.01"]
[Round "-"]
[White "TedUdale"]
[Black "MagnersCarlsberg2870"]
[Result "0-1"]
[WhiteElo "2133"]
[BlackElo "1813"]
[TimeControl "300"]
[EndTime "13:34:48 PDT"]
[Termination "MagnersCarlsberg2870 won by resignation"]

1. e4 {[%clk 0:04:58.1]} 1... d5 {[%clk 0:04:58]} 2. exd5 {[%clk 0:04:56.5]}
2... Nf6 {[%clk 0:04:57.4]} 3. c4 {[%clk 0:04:44.4]} 3... Bg4 {[%clk 0:04:55]}
4. Nf3 {[%clk 0:04:41.6]} 4... c6 {[%clk 0:04:51.9]} 5. dxc6 {[%clk 0:04:39.5]}
5... Nxc6 {[%clk 0:04:51.1]} 6. Be2 {[%clk 0:04:38.7]} 6... e6 {[%clk
0:04:47.3]} 7. O-O {[%clk 0:04:37.5]} 7... Bd6 {[%clk 0:04:46]} 8. d4 {[%clk
0:04:33.9]} 8... Qa5 {[%clk 0:04:44.6]} 9. Nc3 {[%clk 0:04:32.4]} 9... Qh5
{[%clk 0:04:43.4]} 10. g3 {[%clk 0:04:29.7]} 10... O-O {[%clk 0:04:35]} 11. d5
{[%clk 0:04:26.7]} 11... exd5 {[%clk 0:04:33.5]} 12. Nxd5 {[%clk 0:04:25.5]}
12... Ne5 {[%clk 0:04:21.6]} 13. Nxf6+ {[%clk 0:04:20.6]} 13... gxf6 {[%clk
0:04:20.5]} 14. Nd4 {[%clk 0:03:49.7]} 14... Bc5 {[%clk 0:04:13.5]} 15. Bxg4
{[%clk 0:03:45.9]} 15... Nxg4 {[%clk 0:04:10.2]} 16. h4 {[%clk 0:03:42.8]} 16...
Rad8 {[%clk 0:04:07.3]} 17. Be3 {[%clk 0:03:38.2]} 17... Qe5 {[%clk 0:03:58.9]}
18. Re1 {[%clk 0:03:30]} 18... Nxe3 {[%clk 0:03:53.6]} 19. Rxe3 {[%clk
0:03:21.3]} 19... Qxd4 {[%clk 0:03:51.9]} 20. Qf3 {[%clk 0:03:17.5]} 20... Qxb2
{[%clk 0:03:45.9]} 21. Qg4+ {[%clk 0:03:11.8]} 21... Kh8 {[%clk 0:03:44.5]} 22.
Rae1 {[%clk 0:03:10.4]} 22... Bxe3 {[%clk 0:03:43]} 23. Rxe3 {[%clk 0:03:09.7]}
23... Qb1+ {[%clk 0:03:33.3]} 24. Kg2 {[%clk 0:03:08.6]} 24... Qg6 {[%clk
0:03:30.2]} 25. Qf3 {[%clk 0:03:02.4]} 25... Rfe8 {[%clk 0:03:27.9]} 26. Rb3
{[%clk 0:03:00.7]} 26... Qe4 {[%clk 0:03:25.8]} 27. Qxe4 {[%clk 0:02:59.3]}
27... Rxe4 {[%clk 0:03:24.5]} 28. Rxb7 {[%clk 0:02:59.2]} 28... Rxc4 {[%clk
0:03:23.5]} 29. Rxa7 {[%clk 0:02:58]} 29... Rc2 {[%clk 0:03:22.3]} 30. Rxf7
{[%clk 0:02:57.1]} 30... Rxa2 {[%clk 0:03:16]} 31. Rxf6 {[%clk 0:02:55]} 31...
Kg7 {[%clk 0:03:13.8]} 32. Rf5 {[%clk 0:02:53.3]} 32... Rf8 {[%clk 0:03:11.4]}
33. Rxf8 {[%clk 0:02:51.2]} 33... Kxf8 {[%clk 0:03:10.5]} 34. g4 {[%clk
0:02:51]} 34... Kf7 {[%clk 0:03:09.4]} 35. Kg3 {[%clk 0:02:50.6]} 35... Kg6
{[%clk 0:03:08.1]} 36. f3 {[%clk 0:02:49]} 36... Ra3 {[%clk 0:03:05.6]} 37. Kf4
{[%clk 0:02:44.8]} 37... Ra4+ {[%clk 0:03:03.6]} 38. Kg3 {[%clk 0:02:44.2]}
38... h6 {[%clk 0:03:00.9]} 39. Kh3 {[%clk 0:02:42]} 39... Ra3 {[%clk
0:02:58.2]} 40. Kg3 {[%clk 0:02:41.3]} 40... Ra1 {[%clk 0:02:55.7]} 41. h5+
{[%clk 0:02:36.9]} 41... Kf6 {[%clk 0:02:53.1]} 42. Kf4 {[%clk 0:02:33]} 42...
Ra4+ {[%clk 0:02:51.6]} 43. Kg3 {[%clk 0:02:32.4]} 43... Kg5 {[%clk 0:02:50.6]}
44. Kg2 {[%clk 0:02:30.7]} 44... Kf4 {[%clk 0:02:48.3]} 0-1

[Event "Live Chess"]
[Site "Chess.com"]
[Date "2024.06.01"]
[Round "-"]
[White "Sweet-O"]
[Black "Pablo_dmp"]
[Result "0-1"]
[WhiteElo "1545"]
[BlackElo "2013"]
[TimeControl "300"]
[EndTime "13:35:05 PDT"]
[Termination "Pablo_dmp won by resignation"]

1. d4 {[%clk 0:04:58.7]} 1... c5 {[%clk 0:04:59.9]} 2. dxc5 {[%clk 0:04:56.2]}
2... e6 {[%clk 0:04:58.8]} 3. Nc3 {[%clk 0:04:56.1]} 3... Bxc5 {[%clk
0:04:57.9]} 4. Bf4 {[%clk 0:04:49.6]} 4... Qb6 {[%clk 0:04:52.8]} 5. Ne4 {[%clk
0:04:30]} 5... Qb4+ {[%clk 0:04:45]} 6. Nd2 {[%clk 0:04:17]} 6... Qxf4 {[%clk
0:04:42.6]} 7. Ngf3 {[%clk 0:03:58.1]} 7... Nf6 {[%clk 0:04:36]} 8. g3 {[%clk
0:03:55.4]} 8... Qb4 {[%clk 0:04:31.1]} 9. e3 {[%clk 0:03:47.5]} 9... Qxb2
{[%clk 0:04:27.2]} 10. Rb1 {[%clk 0:03:45.1]} 10... Qxa2 {[%clk 0:04:25.8]} 11.
Bc4 {[%clk 0:03:38.7]} 11... Qa5 {[%clk 0:04:22.7]} 12. Ra1 {[%clk 0:03:31.3]}
12... Qc7 {[%clk 0:04:21]} 13. Ke2 {[%clk 0:03:16.1]} 13... d5 {[%clk
0:04:18.2]} 14. Bb5+ {[%clk 0:03:12.8]} 14... Bd7 {[%clk 0:04:17.3]} 15. Bd3
{[%clk 0:03:06.2]} 15... e5 {[%clk 0:04:15.2]} 16. Nxe5 {[%clk 0:02:49.8]} 16...
Qxe5 {[%clk 0:04:11.7]} 17. Kf3 {[%clk 0:02:40.3]} 17... Bg4+ {[%clk 0:04:09.4]}
0-1

[Event "Live Chess"]
[Site "Chess.com"]
[Date "2024.06.01"]
[Round "-"]
[White "NeilDruggan73"]
[Black "stevochess11"]
[Result "1-0"]
[WhiteElo "1760"]
[BlackElo "1703"]
[TimeControl "300"]
[EndTime "13:35:08 PDT"]
[Termination "NeilDruggan73 won by checkmate"]

1. d4 {[%clk 0:04:56]} 1... Nf6 {[%clk 0:04:58.8]} 2. Bg5 {[%clk 0:04:53.9]}
2... Ne4 {[%clk 0:04:52.7]} 3. h4 {[%clk 0:04:51.7]} 3... h6 {[%clk 0:04:51.1]}
4. Bf4 {[%clk 0:04:49.7]} 4... d5 {[%clk 0:04:46.4]} 5. e3 {[%clk 0:04:48.3]}
5... c5 {[%clk 0:04:43.2]} 6. Bd3 {[%clk 0:04:42.9]} 6... Nc6 {[%clk 0:04:41.5]}
7. Nd2 {[%clk 0:04:38.5]} 7... Nxd2 {[%clk 0:04:24.1]} 8. Qxd2 {[%clk
0:04:35.7]} 8... cxd4 {[%clk 0:04:21.8]} 9. exd4 {[%clk 0:04:34]} 9... Qb6
{[%clk 0:04:16.8]} 10. c3 {[%clk 0:04:30.9]} 10... e6 {[%clk 0:04:13.7]} 11. Nf3
{[%clk 0:04:29]} 11... Bd7 {[%clk 0:04:11.4]} 12. O-O {[%clk 0:04:27.5]} 12...
Be7 {[%clk 0:04:08.1]} 13. Rae1 {[%clk 0:04:25]} 13... Qd8 {[%clk 0:04:02.6]}
14. g3 {[%clk 0:04:21.7]} 14... a6 {[%clk 0:03:58.4]} 15. b4 {[%clk 0:04:19.2]}
15... Rc8 {[%clk 0:03:56.4]} 16. a4 {[%clk 0:04:17.9]} 16... O-O {[%clk
0:03:54]} 17. Bb1 {[%clk 0:04:15]} 17... f5 {[%clk 0:03:29.8]} 18. Ne5 {[%clk
0:04:06.5]} 18... Nxe5 {[%clk 0:03:26.5]} 19. dxe5 {[%clk 0:03:45.4]} 19... Bxa4
{[%clk 0:03:24.9]} 20. Kg2 {[%clk 0:03:11.3]} 20... Qc7 {[%clk 0:03:22.5]} 21.
Re3 {[%clk 0:02:52.4]} 21... Rfd8 {[%clk 0:03:13.4]} 22. Rg1 {[%clk 0:01:55.7]}
22... Bc6 {[%clk 0:02:57.1]} 23. Kh3 {[%clk 0:01:54.6]} 23... g5 {[%clk
0:02:52.5]} 24. hxg5 {[%clk 0:01:52.1]} 24... hxg5 {[%clk 0:02:51.4]} 25. g4
{[%clk 0:01:46.6]} 25... fxg4+ {[%clk 0:02:42.5]} 26. Rxg4 {[%clk 0:01:44]}
26... Kf7 {[%clk 0:02:36]} 27. Bxg5 {[%clk 0:01:41.8]} 27... Bxg5 {[%clk
0:02:30.1]} 28. Rf3+ {[%clk 0:01:38.5]} 28... Ke7 {[%clk 0:02:27.2]} 29. Qxg5+
{[%clk 0:01:36.4]} 29... Kd7 {[%clk 0:02:25.8]} 30. Rf7+ {[%clk 0:01:34.6]}
30... Ke8 {[%clk 0:02:24.8]} 31. Qg8# {[%clk 0:01:33.1]} 1-0

[Event "Live Chess"]
[Site "Chess.com"]
[Date "2024.06.01"]
[Round "-"]
[White "gobbles19"]
[Black "agamilewska"]
[Result "1-0"]
[WhiteElo "2243"]
[BlackElo "1767"]
[TimeControl "300"]
[EndTime "13:35:08 PDT"]
[Termination "gobbles19 won by resignation"]

1. e4 {[%clk 0:04:55.6]} 1... e5 {[%clk 0:04:54.9]} 2. d4 {[%clk 0:04:52.9]}
2... exd4 {[%clk 0:04:53.7]} 3. c3 {[%clk 0:04:51.9]} 3... d5 {[%clk 0:04:52.4]}
4. exd5 {[%clk 0:04:50.8]} 4... Qxd5 {[%clk 0:04:51]} 5. cxd4 {[%clk 0:04:50.5]}
5... Nc6 {[%clk 0:04:49.9]} 6. Nf3 {[%clk 0:04:49.5]} 6... Bg4 {[%clk
0:04:48.6]} 7. Be2 {[%clk 0:04:47.9]} 7... Bb4+ {[%clk 0:04:37.9]} 8. Nc3 {[%clk
0:04:46.3]} 8... Bxc3+ {[%clk 0:04:36.3]} 9. bxc3 {[%clk 0:04:44.7]} 9... Nf6
{[%clk 0:04:34.6]} 10. O-O {[%clk 0:04:42.2]} 10... O-O {[%clk 0:04:33.8]} 11.
h3 {[%clk 0:04:39.4]} 11... Bxf3 {[%clk 0:04:32.7]} 12. Bxf3 {[%clk 0:04:38.4]}
12... Qd6 {[%clk 0:04:32.2]} 13. a4 {[%clk 0:04:33.9]} 13... a6 {[%clk
0:04:30.7]} 14. Ba3 {[%clk 0:04:32.3]} 14... Qd7 {[%clk 0:04:26.5]} 15. Bxf8
{[%clk 0:04:30.3]} 15... Rxf8 {[%clk 0:04:24.9]} 16. Re1 {[%clk 0:04:20.3]}
16... h6 {[%clk 0:04:20.9]} 17. Qc2 {[%clk 0:04:11.3]} 17... b6 {[%clk
0:04:16.9]} 18. Rad1 {[%clk 0:04:09.3]} 18... Na5 {[%clk 0:04:15.6]} 19. c4
{[%clk 0:04:05.4]} 19... Rd8 {[%clk 0:04:08]} 20. c5 {[%clk 0:03:57.8]} 20...
Nd5 {[%clk 0:03:44.9]} 21. cxb6 {[%clk 0:03:46.1]} 21... cxb6 {[%clk 0:03:44.8]}
22. Bxd5 {[%clk 0:03:35.2]} 22... Qxd5 {[%clk 0:03:41.6]} 23. Qc7 {[%clk
0:03:28.1]} 23... Nc4 {[%clk 0:03:32.8]} 24. Qa7 {[%clk 0:03:03.7]} 24... Nb2
{[%clk 0:03:17.8]} 25. Rd2 {[%clk 0:02:51.4]} 25... Nxa4 {[%clk 0:03:13.5]} 26.
Qxa6 {[%clk 0:02:49.1]} 26... Nc3 {[%clk 0:03:12.2]} 27. Qxb6 {[%clk 0:02:42.9]}
27... Ne4 {[%clk 0:03:10.6]} 28. Rxe4 {[%clk 0:02:38.7]} 1-0

[Event "Live Chess"]
[Site "Chess.com"]
[Date "2024.06.01"]
[Round "-"]
[White "KeithArkell"]
[Black "MaksymYurii"]
[Result "1-0"]
[WhiteElo "2453"]
[BlackElo "947"]
[TimeControl "300"]
[EndTime "13:35:23 PDT"]
[Termination "KeithArkell won by checkmate"]

1. d4 {[%clk 0:04:57.5]} 1... e6 {[%clk 0:04:54.5]} 2. Nf3 {[%clk 0:04:56.9]}
2... Nc6 {[%clk 0:04:52.6]} 3. Nc3 {[%clk 0:04:54.1]} 3... d5 {[%clk 0:04:49.6]}
4. e4 {[%clk 0:04:52.5]} 4... dxe4 {[%clk 0:04:47.3]} 5. Nxe4 {[%clk 0:04:51.3]}
5... Be7 {[%clk 0:04:34.1]} 6. Bb5 {[%clk 0:04:50.1]} 6... Bd7 {[%clk
0:04:31.7]} 7. O-O {[%clk 0:04:48.2]} 7... a6 {[%clk 0:04:31]} 8. Bc4 {[%clk
0:04:45]} 8... Nf6 {[%clk 0:04:27.4]} 9. Qe2 {[%clk 0:04:40.4]} 9... O-O {[%clk
0:04:22.1]} 10. c3 {[%clk 0:04:35.9]} 10... b5 {[%clk 0:04:04.7]} 11. Bd3 {[%clk
0:04:34.4]} 11... Nxe4 {[%clk 0:03:44.2]} 12. Qxe4 {[%clk 0:04:32.8]} 12... g6
{[%clk 0:03:43.2]} 13. Bh6 {[%clk 0:04:30.9]} 13... Re8 {[%clk 0:03:38.7]} 14.
Rfe1 {[%clk 0:04:30.1]} 14... Bd6 {[%clk 0:03:31]} 15. h4 {[%clk 0:04:27.7]}
15... Ne7 {[%clk 0:03:29.1]} 16. h5 {[%clk 0:04:26.5]} 16... Nf5 {[%clk
0:03:24.3]} 17. Bg5 {[%clk 0:04:23.9]} 17... f6 {[%clk 0:03:05.6]} 18. Bd2
{[%clk 0:04:22.7]} 18... g5 {[%clk 0:02:52.9]} 19. g4 {[%clk 0:04:18.2]} 19...
Nh6 {[%clk 0:02:23.8]} 20. Qxh7+ {[%clk 0:04:18.1]} 20... Kf8 {[%clk 0:02:19.9]}
21. Qxh6+ {[%clk 0:04:17.4]} 21... Ke7 {[%clk 0:02:09.5]} 22. Qg7# {[%clk
0:04:16.1]} 1-0

[Event "Live Chess"]
[Site "Chess.com"]
[Date "2024.06.01"]
[Round "-"]
[White "Queensandpawns"]
[Black "chessfiction"]
[Result "1-0"]
[WhiteElo "2376"]
[BlackElo "2372"]
[TimeControl "300"]
[EndTime "13:35:43 PDT"]
[Termination "Queensandpawns won on time"]

1. e4 {[%clk 0:04:58.6]} 1... d6 {[%clk 0:04:55.2]} 2. d4 {[%clk 0:04:57.4]}
2... Nf6 {[%clk 0:04:54.1]} 3. Nc3 {[%clk 0:04:57.3]} 3... c6 {[%clk 0:04:52.4]}
4. Nf3 {[%clk 0:04:55.9]} 4... Nbd7 {[%clk 0:04:49.9]} 5. h3 {[%clk 0:04:55.2]}
5... e5 {[%clk 0:04:49.2]} 6. Be3 {[%clk 0:04:55.1]} 6... Be7 {[%clk 0:04:48]}
7. Qd2 {[%clk 0:04:54.7]} 7... Qc7 {[%clk 0:04:47.4]} 8. O-O-O {[%clk 0:04:54]}
8... b5 {[%clk 0:04:46.1]} 9. dxe5 {[%clk 0:04:52.9]} 9... dxe5 {[%clk
0:04:44.6]} 10. Nh4 {[%clk 0:04:52.1]} 10... b4 {[%clk 0:04:42.4]} 11. Na4
{[%clk 0:04:49.4]} 11... Nxe4 {[%clk 0:04:41]} 12. Qd3 {[%clk 0:04:49]} 12...
Nec5 {[%clk 0:04:07.6]} 13. Nxc5 {[%clk 0:04:43.5]} 13... Nxc5 {[%clk
0:04:07.5]} 14. Qc4 {[%clk 0:04:32.3]} 14... Be6 {[%clk 0:04:02.4]} 15. Qe2
{[%clk 0:04:30.2]} 15... Qa5 {[%clk 0:03:33.7]} 16. Bxc5 {[%clk 0:04:27.3]}
16... Bxc5 {[%clk 0:03:23.9]} 17. Qxe5 {[%clk 0:04:21.8]} 17... O-O {[%clk
0:03:16.7]} 18. Bd3 {[%clk 0:04:09.6]} 18... Rad8 {[%clk 0:02:30.8]} 19. Nf5
{[%clk 0:03:58]} 19... Bxf5 {[%clk 0:02:24.6]} 20. Qxf5 {[%clk 0:03:57.3]} 20...
g6 {[%clk 0:02:20.2]} 21. Qe5 {[%clk 0:03:50.1]} 21... Rd5 {[%clk 0:02:14.9]}
22. Qf6 {[%clk 0:03:43]} 22... Qxa2 {[%clk 0:02:01.8]} 23. Qxc6 {[%clk
0:03:41.1]} 23... Bxf2 {[%clk 0:01:44.5]} 24. Kd2 {[%clk 0:03:16.3]} 24... Rfd8
{[%clk 0:01:27.1]} 25. Rhf1 {[%clk 0:03:12.3]} 25... Qxb2 {[%clk 0:01:22.1]} 26.
Ke2 {[%clk 0:02:56.7]} 26... Bc5 {[%clk 0:00:59.5]} 27. Be4 {[%clk 0:02:39.9]}
27... Rxd1 {[%clk 0:00:46.8]} 28. Rxd1 {[%clk 0:02:39.8]} 28... Rxd1 {[%clk
0:00:45.1]} 29. Kxd1 {[%clk 0:02:39.7]} 29... Qd4+ {[%clk 0:00:44.2]} 30. Kc1
{[%clk 0:02:36.1]} 30... a5 {[%clk 0:00:38.5]} 31. Bd5 {[%clk 0:02:33.5]} 31...
Kg7 {[%clk 0:00:24.8]} 32. Qb7 {[%clk 0:02:30.9]} 32... Qf4+ {[%clk 0:00:21.4]}
33. Kb1 {[%clk 0:02:27.4]} 33... Bd4 {[%clk 0:00:20.3]} 34. Ka2 {[%clk
0:02:18.1]} 34... Qf1 {[%clk 0:00:18.6]} 35. Kb3 {[%clk 0:02:06.2]} 35... Qb1+
{[%clk 0:00:16.4]} 36. Kc4 {[%clk 0:02:05.6]} 36... Qxc2+ {[%clk 0:00:15.7]} 37.
Kxd4 {[%clk 0:02:04.8]} 37... Qd2+ {[%clk 0:00:14.2]} 38. Ke5 {[%clk 0:02:03.3]}
38... Qc3+ {[%clk 0:00:12.2]} 39. Kd6 {[%clk 0:02:02.5]} 39... Qf6+ {[%clk
0:00:11.6]} 40. Kc5 {[%clk 0:02:01.7]} 40... g5 {[%clk 0:00:09.9]} 41. Qc6
{[%clk 0:01:58.6]} 41... Qc3+ {[%clk 0:00:08.8]} 42. Kd6 {[%clk 0:01:57.5]}
42... Qxc6+ {[%clk 0:00:08.1]} 43. Kxc6 {[%clk 0:01:57.4]} 43... a4 {[%clk
0:00:07.5]} 44. Kb5 {[%clk 0:01:57.3]} 44... b3 {[%clk 0:00:07]} 45. Kxa4 {[%clk
0:01:56.3]} 45... b2 {[%clk 0:00:06.7]} 46. Ba2 {[%clk 0:01:56]} 46... f5 {[%clk
0:00:05.8]} 47. Bb1 {[%clk 0:01:55.9]} 47... Kf6 {[%clk 0:00:05.5]} 48. Kb3
{[%clk 0:01:55.8]} 48... Ke5 {[%clk 0:00:05]} 49. Kxb2 {[%clk 0:01:55.7]} 49...
Kf4 {[%clk 0:00:04.9]} 50. Kc3 {[%clk 0:01:54.2]} 50... g4 {[%clk 0:00:04.3]}
51. hxg4 {[%clk 0:01:50.8]} 51... fxg4 {[%clk 0:00:03.4]} 52. Bxh7 {[%clk
0:01:49.3]} 52... Kg3 {[%clk 0:00:03.3]} 53. Be4 {[%clk 0:01:48.3]} 53... Kf4
{[%clk 0:00:02.2]} 54. Ba8 {[%clk 0:01:47.9]} 54... Ke3 {[%clk 0:00:02]} 55. Kc2
{[%clk 0:01:46.7]} 55... Kf2 {[%clk 0:00:01.9]} 56. Kd1 {[%clk 0:01:46.6]} 56...
g3 {[%clk 0:00:01.8]} 57. Kd2 {[%clk 0:01:45.6]} 57... Kg1 {[%clk 0:00:01.7]}
58. Bf3 {[%clk 0:01:44.4]} 58... Kh2 {[%clk 0:00:01.6]} 59. Kd3 {[%clk
0:01:44.1]} 59... Kg1 {[%clk 0:00:01.4]} 60. Ke4 {[%clk 0:01:44]} 60... Kh2
{[%clk 0:00:01.2]} 61. Ke5 {[%clk 0:01:43.9]} 61... Kg1 {[%clk 0:00:01]} 62. Kd5
{[%clk 0:01:43.8]} 62... Kh2 {[%clk 0:00:00.9]} 63. Kd6 {[%clk 0:01:43.7]} 63...
Kg1 {[%clk 0:00:00.8]} 64. Ke7 {[%clk 0:01:43.6]} 64... Kh2 {[%clk 0:00:00.7]}
65. Kf8 {[%clk 0:01:43.4]} 65... Kg1 {[%clk 0:00:00.6]} 66. Ke8 {[%clk
0:01:43.3]} 66... Kh2 {[%clk 0:00:00.5]} 67. Kd8 {[%clk 0:01:43.2]} 67... Kg1
{[%clk 0:00:00.4]} 68. Kc8 {[%clk 0:01:43.1]} 68... Kh2 {[%clk 0:00:00.3]} 69.
Kb8 {[%clk 0:01:42.8]} 69... Kg1 {[%clk 0:00:00.2]} 70. Ka8 {[%clk 0:01:42.6]}
70... Kh2 {[%clk 0:00:00.1]} 71. Ka7 {[%clk 0:01:42.5]} 1-0

[Event "Live Chess"]
[Site "Chess.com"]
[Date "2024.06.01"]
[Round "-"]
[White "dhairyapandyauk"]
[Black "DoggyDalmatian"]
[Result "1-0"]
[WhiteElo "1688"]
[BlackElo "1541"]
[TimeControl "300"]
[EndTime "13:35:45 PDT"]
[Termination "dhairyapandyauk won by resignation"]

1. e4 {[%clk 0:04:56.9]} 1... e5 {[%clk 0:04:59]} 2. Nf3 {[%clk 0:04:55.5]} 2...
Nc6 {[%clk 0:04:55.1]} 3. Bc4 {[%clk 0:04:53.8]} 3... Bc5 {[%clk 0:04:47.8]} 4.
d3 {[%clk 0:04:50.7]} 4... Nf6 {[%clk 0:04:44.6]} 5. Nc3 {[%clk 0:04:50.2]} 5...
d6 {[%clk 0:04:43.6]} 6. Bg5 {[%clk 0:04:48.7]} 6... h6 {[%clk 0:04:41.3]} 7.
Bh4 {[%clk 0:04:48.1]} 7... Bg4 {[%clk 0:04:40.2]} 8. h3 {[%clk 0:04:34.5]} 8...
Bh5 {[%clk 0:04:33.7]} 9. g4 {[%clk 0:04:32.4]} 9... Bg6 {[%clk 0:04:30.7]} 10.
Nd5 {[%clk 0:04:31.4]} 10... Na5 {[%clk 0:04:23]} 11. b4 {[%clk 0:04:18.2]}
11... Nxc4 {[%clk 0:04:20.8]} 12. bxc5 {[%clk 0:04:17.3]} 12... Na5 {[%clk
0:04:13.8]} 13. c4 {[%clk 0:04:13.2]} 13... Nc6 {[%clk 0:04:06]} 14. Qb3 {[%clk
0:04:08.1]} 14... Rb8 {[%clk 0:03:52.6]} 15. a4 {[%clk 0:04:02.3]} 15... a5
{[%clk 0:03:50.4]} 16. Rb1 {[%clk 0:03:59]} 16... dxc5 {[%clk 0:03:49]} 17. Qb5
{[%clk 0:03:54.5]} 17... Qd6 {[%clk 0:03:46.4]} 18. Bxf6 {[%clk 0:03:45.8]}
18... gxf6 {[%clk 0:03:45]} 19. Nh4 {[%clk 0:03:38.8]} 19... b6 {[%clk
0:03:42.7]} 20. Nf5 {[%clk 0:03:29.7]} 20... Bxf5 {[%clk 0:03:39.8]} 21. gxf5
{[%clk 0:03:29.1]} 21... Kf8 {[%clk 0:03:35.2]} 22. Rg1 {[%clk 0:03:27.2]} 22...
Rg8 {[%clk 0:03:33.5]} 23. Rxg8+ {[%clk 0:03:24.5]} 23... Kxg8 {[%clk
0:03:32.9]} 24. Qxc6 {[%clk 0:03:23.8]} 24... Qxc6 {[%clk 0:03:29.1]} 25. Ne7+
{[%clk 0:03:23]} 25... Kh7 {[%clk 0:03:28.3]} 26. Nxc6 {[%clk 0:03:22.5]} 26...
Rg8 {[%clk 0:03:27.6]} 27. Ke2 {[%clk 0:03:20.1]} 27... Rg2 {[%clk 0:03:26.3]}
28. Kf3 {[%clk 0:03:18.8]} 28... Rg5 {[%clk 0:03:20.3]} 29. h4 {[%clk
0:03:16.5]} 29... Rg8 {[%clk 0:03:16.6]} 30. Ne7 {[%clk 0:03:13.6]} 30... Re8
{[%clk 0:03:12.7]} 31. Nd5 {[%clk 0:03:12.4]} 31... Rd8 {[%clk 0:02:59.8]} 32.
Rg1 {[%clk 0:03:06.6]} 32... Kh8 {[%clk 0:02:54.5]} 33. Nxf6 {[%clk 0:03:04.1]}
33... Rxd3+ {[%clk 0:02:53.3]} 34. Ke2 {[%clk 0:03:03.4]} 34... Rd8 {[%clk
0:02:52.1]} 35. Nd5 {[%clk 0:02:59.1]} 35... Kh7 {[%clk 0:02:45.7]} 36. f6
{[%clk 0:02:54.4]} 36... Kh8 {[%clk 0:02:40.4]} 37. Rg7 {[%clk 0:02:51.7]} 37...
Rd7 {[%clk 0:02:38.8]} 38. Ne7 {[%clk 0:02:45.8]} 38... c6 {[%clk 0:02:15.9]}
39. Rg8+ {[%clk 0:02:39.4]} 39... Kh7 {[%clk 0:02:13.2]} 40. Rg7+ {[%clk
0:02:39]} 40... Kh8 {[%clk 0:02:12.4]} 41. Rxf7 {[%clk 0:02:36.5]} 41... b5
{[%clk 0:02:11.4]} 42. Ng6+ {[%clk 0:02:34.7]} 42... Kg8 {[%clk 0:02:09.8]} 43.
Rxd7 {[%clk 0:02:33.8]} 1-0